bitfinex/quotes_SOLUSD_20251030
["timestamp","ask_amount","ask_price","bid_price","bid_amount"]
[1761861910284,24.38822361,182.68,182.61,0.66]
[1761861910285,3.79622361,182.68,182.63,3.23622361]
[1761861910621,8.73337824,182.67,182.63,3.23622361]
[1761861910820,0.56,182.67,182.63,3.23622361]
[1761861911827,6.03485267,182.66,182.61,3.23622361]
[1761861911993,0.56,182.65,182.61,3.23622361]
[1761861912191,3.79622361,182.65,182.6,3.23622361]
[1761861912409,3.79622361,182.65,182.6,3.89622361]
[1761861912618,3.79622361,182.65,182.6,0.66]
[1761861913302,3.79622361,182.65,182.6,6.13644798]
[1761861913493,3.23622361,182.65,182.6,6.13644798]
[1761861913689,8.71107628,182.66,182.61,0.66]
[1761861913892,0.56,182.66,182.61,0.66]
[1761861914494,3.23622361,182.63,182.56,30.38082769]
[1761861914697,3.23622361,182.61,182.55,0.66]
[1761861914939,3.23622361,182.59,182.54,0.2]
[1761861915121,3.23622361,182.59,182.54,0.86]
[1761861915299,3.79622361,182.6,182.55,0.66]
[1761861915498,9.27276451,182.6,182.55,0.66]
[1761861916008,5.47469707,182.66,182.59,3.23622361]
[1761861916217,5.47469707,182.66,182.55,15.92671364]
[1761861916218,5.47469707,182.66,182.6,3.90622361]
[1761861916421,5.47469707,182.66,182.61,0.67]
[1761861916612,8.71060852,182.67,182.61,3.90622361]
[1761861917441,5.47438491,182.67,182.61,3.23622361]
[1761861917603,3.23622361,182.65,182.59,3.23622361]
[1761861917803,3.23622361,182.65,182.6,3.23622361]
[1761861918007,3.79622361,182.65,182.6,3.23622361]
[1761861918210,0.56,182.64,182.6,3.23622361]
[1761861918903,6.03551842,182.64,182.6,3.23622361]
[1761861919128,6.03551842,182.64,182.57,0.67]
[1761861919306,0.56,182.63,182.58,3.23622361]
[1761861919504,8.71174203,182.64,182.58,0.67]
[1761861919821,5.47551842,182.64,182.6,3.23622361]
[1761861920029,5.47551842,182.64,182.6,3.90622361]
[1761861920218,5.47498919,182.65,182.61,3.90622361]
[1761861920618,5.47498919,182.65,182.62,3.90622361]
[1761861921000,5.47435265,182.67,182.62,3.90622361]
[1761861921216,6.03435265,182.67,182.63,3.23622361]
[1761861921411,5.47405492,182.68,182.64,3.23622361]
[1761861921616,5.47405492,182.68,182.62,6.14583809]
[1761861921617,6.03378798,182.69,182.65,3.23622361]
[1761861922730,6.03378798,182.69,182.64,3.23622361]
[1761861923105,6.03378798,182.69,182.64,3.90622361]
[1761861923304,5.47378798,182.69,182.64,3.23622361]
[1761861923529,0.56,182.68,182.64,3.23622361]
[1761861923827,0.56,182.68,182.62,6.14583809]
[1761861923828,6.03378798,182.69,182.62,5.47583809]
[1761861924018,9.27001159,182.69,182.64,3.23622361]
[1761861924506,0.56,182.68,182.64,3.23622361]
[1761861924710,3.23622361,182.66,182.57,62.37]
[1761861924908,3.23622361,182.63,182.57,67.17732503]
[1761861925141,3.23622361,182.64,182.58,0.67]
[1761861925308,3.23622361,182.64,182.58,3.90622361]
[1761861925931,3.23622361,182.64,182.57,3.23622361]
[1761861925932,3.23622361,182.63,182.57,3.23622361]
[1761861926233,5.47585149,182.62,182.57,3.23622361]
[1761861926634,5.47585149,182.62,182.57,3.90622361]
[1761861926832,9.2720751,182.62,182.57,0.67]
[1761861927134,0.56,182.61,182.56,3.23622361]
[1761861927329,13.45502716,182.62,182.56,8.64917567]
[1761861927932,5.47585149,182.62,182.57,7.97917567]
[1761861928323,6.03585149,182.62,182.57,8.64917567]
[1761861928635,5.47585149,182.62,182.57,0.67]
[1761861928846,5.47585149,182.62,182.57,8.64917567]
[1761861931116,5.47585149,182.62,182.58,0.68]
[1761861931632,14.01502716,182.62,182.56,8.65917567]
[1761861932239,14.01502716,182.62,182.56,0.68]
[1761861932412,14.01502716,182.62,182.57,7.97917567]
[1761861932919,14.01502716,182.62,182.57,0.68]
[1761861932920,7.97917567,182.61,182.57,0.68]
[1761861933517,19.72548022,182.62,182.54,0.2]
[1761861933518,7.97917567,182.58,182.54,0.2]
[1761861933815,7.97917567,182.55,182.54,0.2]
[1761861934212,8.53917567,182.55,182.54,0.2]
[1761861934437,14.01712691,182.55,182.54,0.2]
[1761861935748,6.03795124,182.55,182.54,0.2]
[1761861935913,20.592,182.56,182.54,0.2]
[1761861936117,5.47763895,182.57,182.54,0.2]
[1761861936522,5.47763895,182.57,182.54,0.88]
[1761861937438,5.47763895,182.57,182.54,8.17917567]
[1761861937650,5.47763895,182.57,182.55,0.68]
[1761861938014,5.47763895,182.57,182.55,8.65917567]
[1761861938510,13.69189329,182.59,182.55,8.65917567]
[1761861938511,19.16864448,182.59,182.55,8.65917567]
[1761861938735,19.16864448,182.59,182.56,8.65917567]
[1761861938736,5.47675119,182.59,182.56,8.65917567]
[1761861938927,5.47615136,182.61,182.58,7.97917567]
[1761861939126,5.47495209,182.65,182.57,0.68]
[1761861939339,5.47495209,182.65,182.61,7.97917567]
[1761861939550,5.47495209,182.65,182.63,7.97917567]
[1761861940223,5.47435265,182.67,182.64,7.97917567]
[1761861941226,19.16023429,182.67,182.64,7.97917567]
[1761861942751,20.592,182.67,182.61,0.68]
[1761861942963,7.97917567,182.65,182.58,0.68]
[1761861943247,4.60822918,182.66,182.6,7.97917567]
[1761861943248,8.53917567,182.66,182.6,7.97917567]
[1761861943445,20.592,182.67,182.58,0.68]
[1761861943446,4.04945436,182.65,182.61,7.97917567]
[1761861943646,28.57117567,182.67,182.62,0.68]
[1761861943832,4.04940725,182.66,182.62,0.68]
[1761861944155,14.43670563,182.68,182.65,7.97917567]
[1761861944323,4.05335958,182.67,182.65,7.97917567]
[1761861944522,14.43670563,182.68,182.65,7.97917567]
[1761861944726,14.43670563,182.68,182.58,20.592]
[1761861944727,5.47407513,182.68,182.67,7.97917567]
[1761861946343,5.47407513,182.68,182.66,8.65917567]
[1761861946743,5.47315417,182.71,182.67,8.65917567]
[1761861946947,4.05564542,182.7,182.67,8.65917567]
[1761861947261,4.05564542,182.7,182.58,30.38082769]
[1761861947262,4.05564542,182.69,182.68,0.68]
[1761861947463,5.47315417,182.71,182.68,0.68]
[1761861947763,0.56,182.78,182.68,0.68]
[1761861947935,4.70001085,182.82,182.69,9.78882769]
[1761861947936,4.05931199,182.77,182.69,9.78882769]
[1761861948138,12.74695544,182.81,182.69,9.78882769]
[1761861948139,4.05931199,182.76,182.7,0.28432314]
[1761861948340,0.1,182.82,182.75,3.24065448]
[1761861948534,4.06065986,182.81,182.8,3.24065448]
[1761861948741,4.06065986,182.81,182.8,0.68]
[1761861949150,4.06065986,182.81,182.8,3.92065448]
[1761861949349,0.1,182.82,182.8,14.10739958]
[1761861949556,0.1,182.82,182.81,8.63694228]
[1761861951760,0.1,182.82,182.81,0.68]
[1761861952338,0.1,182.82,182.81,8.63694228]
[1761861952545,5.56986106,182.82,182.78,8.63694228]
[1761861952849,5.56986106,182.82,182.78,0.68]
[1761861953048,19.24451372,182.82,182.78,0.68]
[1761861953738,5.56986106,182.82,182.78,0.68]
[1761861953942,5.56986106,182.82,182.77,7.95694228]
[1761861954142,5.56986106,182.82,182.77,8.63694228]
[1761861954643,19.24451372,182.82,182.77,8.63694228]
[1761861954839,19.80451372,182.82,182.77,8.63694228]
[1761861955537,19.80451372,182.82,182.77,0.68]
[1761861955746,7.95694228,182.79,182.74,0.68]
[1761861956166,7.95694228,182.8,182.74,8.63694228]
[1761861956571,8.51694228,182.81,182.74,8.63694228]
[1761861956875,19.1466083,182.8,182.75,0.68]
[1761861957455,27.66355058,182.8,182.75,0.68]
[1761861959557,27.10355058,182.8,182.75,0.68]
[1761861960482,27.66355058,182.8,182.75,0.68]
[1761861960660,7.95694228,182.79,182.75,0.68]
[1761861961086,28.54894228,182.77,182.72,0.66]
[1761861961255,20.592,182.77,182.72,0.66]
[1761861961455,5.47165681,182.76,182.72,0.66]
[1761861962070,27.66774113,182.76,182.7,70.31694228]
[1761861962257,27.10774113,182.76,182.71,0.66]
[1761861962452,19.15079885,182.76,182.71,8.61694228]
[1761861962657,20.592,182.77,182.72,8.61694228]
[1761861962888,5.4713256,182.78,182.74,7.95694228]
[1761861963265,5.4713256,182.78,182.75,0.66]
[1761861963476,19.14798593,182.79,182.75,5.93754761]
[1761861963976,19.14798593,182.79,182.76,0.66]
[1761861964581,13.67722714,182.79,182.76,0.66]
[1761861965198,5.47045951,182.8,182.76,0.66]
[1761861966666,0.1,182.82,182.79,5.27754761]
[1761861967060,0.1,182.82,182.8,0.66]
[1761861967256,0.1,182.82,182.8,5.93754761]
[1761861967796,0.1,182.82,182.8,5.27754761]
[1761861967971,0.1,182.82,182.81,0.66]
[1761861968163,0.1,182.82,182.81,5.93754761]
[1761861968670,5.57003462,182.82,182.77,0.66]
[1761861968874,5.27754761,182.79,182.74,0.66]
[1761861969974,5.4710581,182.78,182.74,0.66]
[1761861970271,5.4710581,182.78,182.68,6.22938023]
[1761861970272,5.27754761,182.75,182.68,6.22938023]
[1761861970473,5.27754761,182.74,182.69,0.66]
[1761861970670,5.27754761,182.75,182.69,0.66]
[1761861970964,5.4710581,182.78,182.69,5.93754761]
[1761861971306,0.1,182.82,182.78,9.78882769]
[1761861971517,0.1,182.82,182.81,5.27754761]
[1761861971692,0.1,182.82,182.81,5.93754761]
[1761861973675,0.1,182.87,182.85,20.592]
[1761861973879,0.1,182.87,182.86,10.74621216]
[1761861974084,0.1,182.87,182.86,21.19503985]
[1761861974684,0.1,182.87,182.86,21.252]
[1761861975027,0.1,182.87,182.86,26.52954761]
[1761861975506,0.1,182.87,182.85,5.27754761]
[1761861975706,0.1,182.9,182.88,30.66515083]
[1761861975916,0.1,182.91,182.9,15.0663753]
[1761861976118,0.1,182.91,182.9,21.23384386]
[1761861977003,0.1,182.91,182.9,21.518167]
[1761861978315,15.46449826,183.0,182.93,30.38082769]
[1761861978618,15.46449826,183.0,182.93,35.6583753]
[1761861978619,5.4648092,182.99,182.93,35.6583753]
[1761861978831,5.4648092,182.99,182.93,36.3583753]
[1761861979125,15.46451785,183.0,182.93,36.3583753]
[1761861979887,10.0,183.0,182.93,36.3583753]
[1761861980133,10.0,183.0,182.93,41.63592291]
[1761861980296,10.0,183.0,182.93,47.10249482]
[1761861980495,10.0,183.0,182.94,9.78882769]
[1761861980700,10.0,183.0,182.99,5.27754761]
[1761861981606,10.0,183.0,182.99,15.7663753]
[1761861982438,10.0,183.0,182.99,21.23115479]
[1761861982630,10.0,183.0,182.99,21.51547793]
[1761861982792,0.1,183.01,183.0,10.07315083]
[1761861982993,0.1,183.01,183.0,15.0663753]
[1761861983231,0.1,183.01,183.0,5.27754761]
[1761861984311,0.78,183.01,182.98,5.27754761]
[1761861984707,6.24422327,183.01,182.97,5.27754761]
[1761861986415,0.68,183.0,182.96,5.27754761]
[1761861986924,0.68,183.0,182.95,5.27754761]
[1761861987815,0.68,183.0,182.94,20.592]
[1761861988113,5.27754761,182.99,182.93,5.27754761]
[1761861988432,5.46507815,182.98,182.94,5.27754761]
[1761861988815,0.72,182.97,182.94,5.27754761]
[1761861989035,0.72,182.97,182.93,5.27754761]
[1761861990549,5.46567555,182.96,182.93,5.27754761]
[1761861991513,5.46567555,182.96,182.91,72.18882769]
[1761861991514,6.18567555,182.96,182.91,62.4]
[1761861991709,6.18567555,182.96,182.92,5.27754761]
[1761861991925,0.72,182.95,182.91,66.97754761]
[1761861992749,5.46627309,182.94,182.91,66.97754761]
[1761861993116,0.72,182.93,182.91,61.7]
[1761861993354,0.72,182.93,182.9,5.27754761]
[1761861993735,0.72,182.93,182.89,5.27754761]
[1761861993936,0.72,182.93,182.88,5.27754761]
[1761861994238,0.72,182.93,182.9,5.27754761]
[1761861994734,5.46687076,182.92,182.9,5.27754761]
[1761861995147,5.4659743,182.95,182.9,5.27754761]
[1761861995346,5.4659743,182.95,182.93,5.27754761]
[1761861995759,5.46477949,182.99,182.94,5.27754761]
[1761861995924,0.72,182.98,182.94,5.27754761]
[1761861996736,5.46537683,182.97,182.94,5.27754761]
[1761861997435,0.72,182.96,182.89,9.78882769]
[1761861997652,0.72,182.96,182.91,5.27754761]
[1761861997958,0.72,182.96,182.89,10.46882769]
[1761861997959,5.27754761,182.95,182.89,0.68]
[1761861998129,5.27754761,182.95,182.89,5.27754761]
[1761861998329,0.72,182.94,182.89,5.27754761]
[1761861998534,5.99754761,182.94,182.87,0.68]
[1761861998843,5.46657191,182.93,182.88,5.27754761]
[1761861999152,6.18657191,182.93,182.88,5.27754761]
[1761861999373,5.99754761,182.92,182.84,9.78882769]
[1761861999567,5.99754761,182.92,182.86,5.27754761]
[1761861999729,0.72,182.91,182.86,5.27754761]
[1761862000952,5.46746856,182.9,182.86,5.27754761]
[1761862001472,19.13613996,182.9,182.83,0.68]
[1761862001630,0.72,182.89,182.84,5.27754761]
[1761862003667,5.46806649,182.88,182.85,5.27754761]
[1761862004165,6.18780398,182.89,182.86,5.27754761]
[1761862004338,5.46780398,182.89,182.86,5.27754761]
[1761862005047,5.46780398,182.89,182.85,5.95754761]
[1761862005237,6.18780398,182.89,182.85,5.95754761]
[1761862005934,18.94547431,182.91,182.87,5.27754761]
[1761862005935,5.46744546,182.91,182.87,5.27754761]
[1761862006362,5.46744546,182.91,182.87,5.95754761]
[1761862006555,14.38713013,182.93,182.9,5.27754761]
[1761862006556,26.77886457,182.93,182.9,5.27754761]
[1761862007447,5.46716964,182.91,182.87,20.592]
[1761862007642,19.13509375,182.91,182.87,25.86954761]
[1761862007841,0.72,182.9,182.87,25.86954761]
[1761862008042,0.72,182.9,182.87,20.592]
[1761862008444,5.46716964,182.91,182.87,25.86954761]
[1761862008645,6.18716964,182.91,182.87,25.86954761]
[1761862009256,5.46716964,182.91,182.87,5.27754761]
[1761862009456,5.46716964,182.91,182.88,0.68]
[1761862009643,19.13404766,182.92,182.88,0.68]
[1761862010170,19.13404766,182.92,182.88,5.95754761]
[1761862010342,19.13404766,182.92,182.88,5.27754761]
[1761862010543,19.85404766,182.92,182.88,5.27754761]
[1761862010957,0.72,182.91,182.88,5.27754761]
[1761862011168,5.46746856,182.9,182.88,5.27754761]
[1761862012746,5.46724421,182.91,182.88,5.27754761]
[1761862012948,0.72,182.93,182.9,5.27754761]
[1761862013148,6.18658274,182.93,182.91,5.27754761]
[1761862013354,5.46658274,182.93,182.91,5.27754761]
[1761862014343,5.46629615,182.94,182.92,5.27754761]
[1761862014550,5.46582104,182.96,182.93,5.27754761]
[1761862014855,5.46582104,182.96,182.94,5.27754761]
[1761862015269,19.12890928,182.97,182.93,5.27754761]
[1761862015467,19.12890928,182.97,182.94,5.27754761]
[1761862015671,19.84890928,182.97,182.94,5.27754761]
[1761862016048,6.18537683,182.97,182.94,5.27754761]
[1761862016457,6.18537683,182.97,182.93,5.27754761]
[1761862017293,0.72,182.96,182.92,5.27754761]
[1761862019353,5.4659743,182.95,182.91,5.27754761]
[1761862019652,5.4659743,182.95,182.89,21.272]
[1761862019854,6.1859743,182.95,182.91,5.27754761]
[1761862020277,0.72,182.94,182.9,5.27754761]
[1761862020855,0.72,182.94,182.91,5.27754761]
[1761862021256,5.46657191,182.93,182.89,5.27754761]
[1761862021771,0.72,182.92,182.89,5.27754761]
[1761862022074,0.72,182.92,182.85,16.43970737]
[1761862022274,5.27754761,182.9,182.84,5.27754761]
[1761862022850,0.72,182.89,182.84,5.27754761]
[1761862023353,6.18784429,182.89,182.85,7.95423803]
[1761862023972,20.592,182.96,182.88,7.95423803]
[1761862024170,12.75191648,182.95,182.89,7.95423803]
[1761862024350,7.95423803,182.93,182.86,0.66]
[1761862024554,0.72,182.92,182.87,7.95423803]
[1761862024769,0.72,182.92,182.85,0.66]
[1761862025083,0.72,182.92,182.87,7.95423803]
[1761862025379,5.46716964,182.91,182.88,7.95423803]
[1761862025582,6.18716964,182.91,182.88,7.95423803]
[1761862026387,0.72,182.9,182.86,7.95423803]
[1761862026566,7.95423803,182.88,182.8,14.32687394]
[1761862026878,7.95423803,182.87,182.82,7.95423803]
[1761862027259,8.67423803,182.86,182.8,8.61423803]
[1761862027478,7.95423803,182.84,182.79,7.95423803]
[1761862027684,0.72,182.83,182.79,7.95423803]
[1761862027870,0.72,182.83,182.79,28.54623803]
[1761862028378,0.72,182.83,182.79,7.95423803]
[1761862028577,8.67423803,182.83,182.77,7.95423803]
[1761862028978,0.72,182.82,182.77,7.95423803]
[1761862029483,5.47016027,182.81,182.77,7.95423803]
[1761862029865,6.19016027,182.81,182.77,7.95423803]
[1761862030384,5.47016027,182.81,182.77,8.61423803]
[1761862030761,6.19016027,182.81,182.77,8.61423803]
[1761862031085,5.47016027,182.81,182.78,7.95423803]
[1761862031459,14.39216465,182.86,182.8,7.95423803]
[1761862031687,14.39216465,182.86,182.81,7.95423803]
[1761862031868,13.67240907,182.85,182.8,7.95423803]
[1761862032062,22.3466471,182.85,182.8,7.95423803]
[1761862032261,0.72,182.84,182.8,7.95423803]
[1761862033077,5.46956188,182.83,182.8,7.95423803]
[1761862033767,0.72,182.86,182.81,7.95423803]
[1761862033967,8.67423803,182.87,182.81,7.95423803]
[1761862034195,8.67423803,182.86,182.81,7.95423803]
[1761862034696,0.72,182.85,182.81,7.95423803]
[1761862035196,5.46926274,182.84,182.8,7.95423803]
[1761862035505,6.18926274,182.84,182.8,7.95423803]
[1761862036065,5.46926274,182.84,182.81,7.95423803]
[1761862036577,6.14926274,182.84,182.81,7.95423803]
[1761862037186,6.14926274,182.84,182.8,8.67423803]
[1761862038597,7.95423803,182.82,182.78,61.7]
[1761862038770,7.95423803,182.82,182.77,69.65423803]
[1761862038970,0.68,182.81,182.77,69.65423803]
[1761862039194,0.68,182.81,182.77,7.95423803]
[1761862039491,0.68,182.81,182.78,7.95423803]
[1761862039799,6.1503707,182.81,182.78,7.95423803]
[1761862042298,0.68,182.86,182.8,7.95423803]
[1761862042475,0.68,182.86,182.83,7.95423803]
[1761862043900,5.46896363,182.85,182.83,7.95423803]
[1761862044088,20.592,182.91,182.84,8.67423803]
[1761862044282,4.07843825,182.9,182.85,7.95423803]
[1761862044486,4.07843825,182.9,182.85,8.67423803]
[1761862044682,4.07843825,182.9,182.86,0.72]
[1761862044878,23.21457821,182.9,182.86,0.72]
[1761862045074,19.13613996,182.9,182.86,8.67423803]
[1761862045998,13.6686714,182.9,182.86,8.67423803]
[1761862046802,19.13613996,182.9,182.87,0.72]
[1761862047000,19.13613996,182.9,182.86,7.95423803]
[1761862047178,19.13613996,182.9,182.86,8.67423803]
[1761862048703,13.6686714,182.9,182.87,0.67]
[1761862049200,5.46716964,182.91,182.89,7.95423803]
[1761862049408,13.66497999,182.95,182.9,7.95423803]
[1761862049577,5.46567555,182.96,182.91,8.62423803]
[1761862049892,4.07702107,182.95,182.91,8.62423803]
[1761862050122,0.66,182.95,182.91,8.62423803]
[1761862050487,5.46627309,182.94,182.91,8.62423803]
[1761862051876,5.46627309,182.94,182.9,7.95423803]
[1761862052084,7.95423803,182.92,182.87,8.62423803]
[1761862052573,14.32425778,182.96,182.88,8.62423803]
[1761862052777,7.95423803,182.94,182.89,8.62423803]
[1761862052976,7.95423803,182.94,182.89,0.67]
[1761862053177,7.95423803,182.93,182.87,20.592]
[1761862053388,7.95423803,182.93,182.87,7.95423803]
[1761862053593,7.95423803,182.93,182.88,0.67]
[1761862054403,5.46687076,182.92,182.88,0.67]
[1761862057781,13.66499951,182.95,182.9,7.95423803]
[1761862057979,6.12545195,182.97,182.91,7.95423803]
[1761862058331,7.95423803,182.93,182.88,0.67]
[1761862058477,7.95423803,182.9,182.85,0.67]
[1761862059018,8.61423803,182.9,182.85,0.67]
[1761862059815,5.46806649,182.88,182.85,0.67]
[1761862060881,8.61423803,182.87,182.81,0.67]
[1761862061090,7.95423803,182.85,182.81,0.67]
[1761862061289,7.95423803,182.86,182.81,0.67]
[1761862061698,8.61423803,182.86,182.81,0.67]
[1761862061885,14.08320166,182.85,182.81,0.67]
[1761862062382,7.95423803,182.84,182.79,21.262]
[1761862062583,7.95423803,182.84,182.79,0.67]
[1761862062783,7.95423803,182.84,182.78,7.95423803]
[1761862062784,8.61423803,182.84,182.8,0.67]
[1761862062985,7.95423803,182.83,182.76,67.17161575]
[1761862063182,7.95423803,182.83,182.78,0.67]
[1761862063592,7.95423803,182.84,182.78,0.67]
[1761862063991,5.46956188,182.83,182.78,0.67]
[1761862064194,13.42379991,182.83,182.78,0.67]
[1761862064411,14.08379991,182.83,182.78,0.67]
[1761862064599,27.09770463,182.83,182.78,0.67]
[1761862064797,7.95423803,182.89,182.82,7.95423803]
[1761862065137,4.08405645,182.88,182.83,8.62423803]
[1761862065310,4.08405645,182.88,182.84,3.23516033]
[1761862065516,4.74405645,182.88,182.84,3.90516033]
[1761862065696,5.46776751,182.89,182.85,0.67]
[1761862066016,19.13514502,182.91,182.87,3.23516033]
[1761862066193,19.79514502,182.91,182.87,3.90516033]
[1761862066597,19.13514502,182.91,182.87,3.90516033]
[1761862067302,19.13514502,182.91,182.87,8.62268099]
[1761862068191,5.46687076,182.92,182.88,7.95268099]
[1761862068818,5.46687076,182.92,182.88,8.62268099]
[1761862069018,4.74514355,182.91,182.85,0.67]
[1761862069322,4.08514355,182.91,182.87,7.95268099]
[1761862069494,4.08514355,182.91,182.88,7.95268099]
[1761862070409,5.46746856,182.9,182.87,7.95268099]
[1761862070610,6.12746856,182.9,182.86,7.95268099]
[1761862070810,5.46746856,182.9,182.86,8.62268099]
[1761862071614,0.66,182.9,182.86,8.62268099]
[1761862071820,0.66,182.89,182.85,7.95268099]
[1761862072922,0.66,182.89,182.85,8.62268099]
[1761862073299,0.66,182.89,182.86,7.95268099]
[1761862073499,27.74777474,182.91,182.86,8.62268099]
[1761862073828,19.79509375,182.91,182.86,7.95268099]
[1761862074003,19.79509375,182.91,182.87,0.67]
[1761862074203,0.66,182.9,182.86,8.62268099]
[1761862074498,19.13509375,182.91,182.87,7.95268099]
[1761862074700,5.46716964,182.91,182.89,7.95268099]
[1761862075221,0.66,182.95,182.9,8.62268099]
[1761862075404,0.66,182.93,182.9,7.95268099]
[1761862075603,4.74622904,182.93,182.9,7.95268099]
[1761862075798,13.41955175,182.92,182.87,7.95268099]
[1761862076121,14.07955175,182.92,182.87,7.95268099]
[1761862076326,4.74688127,182.91,182.87,7.95268099]
[1761862077204,0.66,182.91,182.87,8.62268099]
[1761862077507,4.74705781,182.91,182.87,8.62268099]
[1761862077707,5.46746856,182.9,182.87,0.67]
[1761862078011,5.46746856,182.9,182.87,8.62268099]
[1761862078833,7.95268099,182.88,182.83,0.71]
[1761862079121,7.95268099,182.88,182.83,8.66268099]
[1761862079324,8.67268099,182.89,182.83,8.66268099]
[1761862079710,19.85823271,182.88,182.83,8.66268099]
[1761862080617,0.72,182.87,182.83,7.95268099]
[1761862081212,0.72,182.87,182.83,8.66268099]
[1761862081416,7.95268099,182.85,182.8,8.66268099]
[1761862081604,5.46926274,182.84,182.8,7.95268099]
[1761862081809,5.46926274,182.84,182.8,8.66268099]
[1761862082022,6.18926274,182.84,182.8,8.66268099]
[1761862082425,0.72,182.91,182.83,7.95268099]
[1761862082620,5.46746856,182.9,182.87,7.95268099]
[1761862082924,5.46746856,182.9,182.86,7.95268099]
[1761862082925,19.13613996,182.9,182.86,7.95268099]
[1761862083133,19.85613996,182.9,182.86,7.95268099]
[1761862083629,19.85613996,182.9,182.86,8.66268099]
[1761862084624,0.72,182.89,182.83,21.302]
[1761862084822,4.80878618,182.89,182.85,7.95268099]
[1761862085348,9.36031256,182.89,182.83,5.98152638]
[1761862085512,4.80981023,182.88,182.82,0.71]
[1761862085834,5.4683655,182.87,182.84,5.27152638]
[1761862086532,4.81087055,182.86,182.82,5.27152638]
[1761862086721,4.81087055,182.86,182.81,5.98152638]
[1761862087345,4.81087055,182.86,182.81,2.07110296]
[1761862087511,4.81087055,182.86,182.81,2.78110296]
[1761862087710,5.46896363,182.85,182.82,0.71]
[1761862088316,5.46896363,182.85,182.81,2.07110296]
[1761862088515,5.46896363,182.85,182.81,2.78110296]
[1761862088727,19.1413727,182.85,182.81,2.78110296]
[1761862089929,19.1413727,182.85,182.81,0.71]
[1761862092544,0.72,182.84,182.78,0.71]
[1761862092851,2.07110296,182.79,182.74,0.91]
[1761862093021,2.07110296,182.79,182.75,0.71]
[1761862093218,2.79110296,182.78,182.74,0.2]
[1761862093527,2.07110296,182.75,182.74,0.2]
[1761862093731,2.07110296,182.76,182.74,0.2]
[1761862094516,5.47195622,182.75,182.74,0.2]
[1761862096657,5.47165681,182.76,182.74,0.2]
[1761862097321,6.14165681,182.76,182.74,0.2]
[1761862098040,5.47016027,182.81,182.75,2.78110296]
[1761862098252,5.47016027,182.81,182.77,2.07110296]
[1761862098414,5.47016027,182.81,182.78,0.71]
[1761862098839,6.14016027,182.81,182.77,2.07110296]
[1761862099052,6.14016027,182.81,182.77,2.78110296]
[1761862099257,5.47016027,182.81,182.78,0.71]
[1761862099965,6.14016027,182.81,182.77,2.07110296]
[1761862100334,6.14016027,182.81,182.77,2.78110296]
[1761862100634,6.14016027,182.81,182.74,13.27320252]
[1761862100635,2.07110296,182.78,182.74,0.2]
[1761862100989,0.67,182.8,182.74,0.2]
[1761862101141,5.47165681,182.76,182.74,0.2]
[1761862102074,5.47165681,182.76,182.74,0.91]
[1761862102240,5.47165681,182.76,182.74,0.2]
[1761862102741,5.47165681,182.76,182.74,0.91]
[1761862103137,5.47135744,182.77,182.74,0.91]
[1761862103557,8.2124604,182.77,182.74,0.2]
[1761862103755,0.67,182.76,182.74,0.2]
[1761862104956,21.220854,182.77,182.74,0.2]
[1761862105265,21.890854,182.77,182.74,0.2]
[1761862105842,0.67,182.76,182.74,0.2]
[1761862106471,2.74110296,182.76,182.74,0.2]
[1761862107049,5.47195622,182.75,182.74,0.2]
[1761862108554,6.13195622,182.75,182.74,0.2]
[1761862108879,6.13195622,182.75,182.72,16.56308294]
[1761862108880,20.592,182.73,182.72,16.56308294]
[1761862109047,39.93178703,182.73,182.72,1e-08]
[1761862109356,30.38082769,182.7,182.69,1e-08]
[1761862109556,48.47989866,182.7,182.69,1e-08]
[1761862109754,49.13989866,182.7,182.69,1e-08]
[1761862110144,27.39852469,182.7,182.69,1e-08]
[1761862111171,32.87197843,182.7,182.69,1e-08]
[1761862117696,44.73190908,182.7,182.69,1e-08]
[1761862117860,2.07110296,182.65,182.64,0.2]
[1761862118375,23.32310296,182.65,182.64,1e-08]
[1761862118563,27.38181307,182.65,182.64,1e-08]
[1761862119658,32.85676516,182.65,182.64,1e-08]
[1761862121073,32.19676516,182.65,182.64,1e-08]
[1761862121979,32.85676516,182.65,182.64,1e-08]
[1761862122878,42.64559285,182.65,182.64,1e-08]
[1761862124179,20.592,182.61,182.55,0.89]
[1761862124382,2.07110296,182.58,182.55,0.89]